bitfinex/quotes_ETHUSD_20240731
["timestamp","ask_amount","ask_price","bid_price","bid_amount"]
[1722428431764,6.83036158,3328.5,3328.4,0.29603601]
[1722428431986,6.83036158,3328.5,3328.4,0.25]
[1722428432288,6.0087,3328.5,3328.4,0.25]
[1722428434727,8.21640942,3328.5,3328.4,0.25]
[1722428434903,6.0087,3328.5,3328.4,0.25]
[1722428435609,5.21159876,3328.6,3328.4,0.25]
[1722428435915,3.00432,3328.6,3328.4,0.25]
[1722428436115,3.00435,3328.5,3328.4,0.25]
[1722428436466,3.00435,3328.5,3328.4,35.25]
[1722428437302,3.00422,3328.7,3328.4,35.25]
[1722428437715,3.00427,3328.6,3328.4,35.25]
[1722428438373,3.00427,3328.6,3328.4,35.0]
[1722428438571,3.00427,3328.6,3328.4,35.2]
[1722428439510,3.00435,3328.5,3328.4,0.2]
[1722428439692,6.0087,3328.5,3328.4,0.2]
[1722428439896,6.60957,3328.5,3328.4,0.2]
[1722428440121,9.60957,3328.5,3328.4,0.2]
[1722428440308,11.81658708,3328.5,3328.4,0.2]
[1722428440472,9.0087,3328.5,3328.4,0.2]
[1722428440797,6.00435,3328.5,3328.4,0.2]
[1722428441397,9.0087,3328.5,3328.4,0.2]
[1722428442672,9.0087,3328.5,3328.4,0.4]
[1722428443898,14.21982765,3328.5,3328.4,0.4]
[1722428444107,15.64181041,3328.5,3328.4,0.4]
[1722428444823,13.43503276,3328.5,3328.4,0.4]
[1722428445006,15.64164807,3328.5,3328.4,0.4]
[1722428446276,15.64164807,3328.5,3328.4,0.4721361]
[1722428446772,15.64164807,3328.5,3328.4,0.6721361]
[1722428447539,18.76668276,3328.5,3328.4,0.6721361]
[1722428447912,9.75363276,3328.5,3326.8,2.5691]
[1722428448114,3.00558,3327.2,3326.8,3.55601]
[1722428448382,6.01124,3327.1,3327.0,0.3016]
[1722428449047,6.01124,3327.1,3327.0,0.37140413]
[1722428449544,3.00549,3327.3,3327.0,0.37140413]
[1722428450051,3.00521,3327.6,3327.0,0.37140413]
[1722428450351,3.00544,3327.3,3327.0,0.37140413]
[1722428450554,3.00544,3327.3,3327.0,3.42041701]
[1722428451736,3.00544,3327.3,3327.0,0.37140413]
[1722428451942,3.00544,3327.3,3327.1,35.3016]
[1722428452528,3.00544,3327.3,3327.2,0.06980413]
[1722428452925,3.00544,3327.3,3327.1,35.3016]
[1722428453128,3.00544,3327.3,3327.2,0.06980413]
[1722428453753,3.00512,3327.7,3327.2,3.11881701]
[1722428453929,3.00518,3327.6,3327.2,3.04901288]
[1722428454076,3.00518,3327.6,3327.3,0.06980413]
[1722428454401,3.0,3327.9,3327.4,0.06980413]
[1722428454402,3.00525,3327.5,3327.4,0.06980413]
[1722428454824,3.00549,3327.3,3327.1,35.3016]
[1722428455105,3.00525,3327.5,3327.1,35.3016]
[1722428455669,3.00508,3327.7,3327.1,41.35617288]
[1722428455865,3.00528,3327.5,3327.1,38.35061288]
[1722428456666,6.00496,3327.9,3327.1,38.35061288]
[1722428456865,3.00517,3327.6,3327.1,38.35061288]
[1722428457110,3.00517,3327.6,3327.2,0.35658782]
[1722428457607,3.00486,3328.0,3327.4,3.00532]
[1722428457814,3.00486,3328.0,3327.5,2.4877]
[1722428458378,3.00486,3328.0,3327.6,35.0]
[1722428459269,3.00467,3328.2,3327.6,35.0]
[1722428459485,3.00463,3328.2,3327.7,3.10911049]
[1722428459813,3.00462,3328.2,3327.7,3.04901288]
[1722428460116,6.00899,3328.4,3327.8,35.0]
[1722428460407,6.00901,3328.4,3327.8,35.0]
[1722428460765,6.0042,3328.7,3327.8,35.0]
[1722428460966,3.00454,3328.3,3327.8,35.0]
[1722428461407,3.00439,3328.5,3327.8,35.0]
[1722428461579,6.00447,3328.4,3327.8,41.05397288]
[1722428461774,3.00447,3328.4,3327.9,0.07008303]
[1722428462394,3.00453,3328.3,3327.9,0.07008303]
[1722428462605,3.00468,3328.2,3327.9,0.07008303]
[1722428462981,6.00897,3328.4,3327.9,0.07008303]
[1722428463187,3.00447,3328.4,3327.9,0.07008303]
[1722428464017,3.00453,3328.3,3327.9,0.07008303]
[1722428464222,3.00447,3328.4,3327.9,0.07008303]
[1722428464421,3.00429,3328.6,3327.9,3.07496303]
[1722428464628,3.00429,3328.6,3328.0,0.35658782]
[1722428464917,3.00445,3328.4,3328.0,0.35658782]
[1722428465127,3.00445,3328.4,3327.7,6.00999]
[1722428465128,3.00445,3328.4,3328.1,0.07008303]
[1722428465327,3.00445,3328.4,3328.1,35.07008303]
[1722428465626,3.0,3328.7,3328.2,0.07009449]
[1722428465803,5.34416,3329.4,3328.2,2.35759449]
[1722428465804,3.00414,3328.8,3328.2,2.35759449]
[1722428466017,3.00414,3328.8,3328.2,5.36221449]
[1722428466185,3.00414,3328.8,3328.2,8.41122737]
[1722428466381,3.00394,3329.0,3328.4,3.00439]
[1722428466585,3.00391,3329.0,3328.3,3.06454747]
[1722428466781,3.00391,3329.0,3328.4,0.07008303]
[1722428467014,3.00391,3329.0,3328.4,0.13016436]
[1722428467181,3.0,3328.9,3328.4,3.49118218]
[1722428468732,3.0,3328.9,3328.4,0.42667085]
[1722428469031,3.00414,3328.8,3328.4,0.07008303]
[1722428469332,3.00414,3328.8,3328.2,5.29211]
[1722428469532,3.00414,3328.8,3328.5,0.06938791]
[1722428469684,3.00414,3328.8,3328.2,5.29211]
[1722428469884,3.0,3328.9,3328.6,0.06938791]
[1722428470092,3.0,3328.9,3328.3,3.00447]
[1722428470340,3.0,3328.9,3328.7,0.06938791]
[1722428470565,3.00374,3329.2,3328.6,3.00424]
[1722428470700,3.00359,3329.4,3328.8,0.06938791]
[1722428470911,3.00359,3329.4,3328.6,3.00421]
[1722428471111,3.00359,3329.4,3328.9,0.06939936]
[1722428471112,3.00377,3329.2,3328.9,0.06939936]
[1722428471350,3.00377,3329.2,3328.6,3.00421]
[1722428471351,6.00756,3329.2,3328.6,3.00421]
[1722428471643,3.0039,3329.0,3328.7,0.06939936]
[1722428471840,3.0039,3329.0,3328.4,0.06008141]
[1722428472043,3.00417,3328.7,3328.4,0.06008141]
[1722428472245,3.00417,3328.7,3328.3,3.04901288]
[1722428472451,3.00444,3328.5,3328.2,2.2875]
[1722428472675,2.2859,3329.2,3328.1,35.0]
[1722428472676,3.00462,3328.2,3328.1,35.0]
[1722428472963,3.00462,3328.2,3327.8,7.3]
[1722428472964,3.00485,3328.0,3327.8,7.3]
[1722428473142,3.00485,3328.0,3327.3,5.42958]
[1722428473466,3.00512,3327.7,3327.4,35.0]
[1722428473644,3.00516,3327.6,3327.4,35.0]
[1722428474116,3.00494,3327.9,3327.4,35.0]
[1722428474316,3.00476,3328.1,3327.4,35.0]
[1722428474613,3.00476,3328.1,3327.4,41.05431288]
[1722428474862,3.00499,3327.8,3327.4,35.0]
[1722428475023,3.00522,3327.6,3327.4,35.0]
[1722428475616,3.00499,3327.8,3327.4,35.0]
[1722428475951,3.00495,3327.9,3327.4,35.0]
[1722428476137,3.00465,3328.2,3327.6,3.00515]
[1722428476332,3.00448,3328.4,3327.7,2.33509791]
[1722428476662,3.00459,3328.3,3327.8,0.06935736]
[1722428476964,3.00459,3328.3,3327.7,5.34016791]
[1722428477119,3.00459,3328.3,3327.9,0.06935736]
[1722428477316,3.00459,3328.3,3327.7,5.34016791]
[1722428477521,3.00459,3328.3,3328.0,0.06935736]
[1722428477721,3.00436,3328.5,3327.8,3.00497]
[1722428477972,3.0,3328.4,3328.1,0.06935736]
[1722428478136,6.0045,3328.4,3327.7,5.34016438]
[1722428478350,6.0045,3328.4,3328.2,0.06935736]
[1722428478870,6.0045,3328.4,3328.3,0.06935736]
[1722428479021,6.0045,3328.4,3327.7,6.17470482]
[1722428479363,6.0045,3328.4,3328.3,0.06935736]
[1722428479553,6.0045,3328.4,3327.7,5.34016438]
[1722428479863,6.0045,3328.4,3328.3,0.06935736]
[1722428480078,6.0045,3328.4,3327.7,5.34016438]
[1722428480255,3.0,3328.4,3328.3,0.06935736]
[1722428480466,3.0,3328.5,3327.9,3.00483]
[1722428480776,3.00444,3328.4,3328.3,0.06935736]
[1722428481127,6.00888,3328.4,3328.3,0.06935736]
[1722428481365,3.00411,3328.8,3327.4,35.0]
[1722428481366,3.00475,3328.1,3327.5,3.00523]
[1722428481575,3.00481,3328.0,3327.5,3.04901288]
[1722428481777,3.0047,3328.2,3327.6,0.06958266]
[1722428482000,3.00457,3328.3,3327.6,0.06958266]
[1722428482286,3.00471,3328.1,3327.6,0.06958266]
[1722428482424,3.00481,3328.0,3327.6,0.06958266]
[1722428483064,3.00464,3328.2,3327.6,0.06958266]
[1722428483441,3.00472,3328.1,3327.6,0.06958266]
[1722428484466,3.00481,3328.0,3327.6,0.42617048]
[1722428485598,3.00507,3327.7,3327.6,0.06958266]
[1722428486014,3.00507,3327.7,3327.4,35.0]
[1722428486015,3.00525,3327.5,3327.4,35.0]
[1722428486177,6.0105,3327.5,3327.4,35.0]
[1722428487270,6.91206,3327.5,3327.4,35.0]
[1722428488067,3.90681,3327.5,3327.4,35.0]
[1722428488296,3.00525,3327.5,3327.4,35.0]
[1722428489052,3.0,3328.0,3326.6,12.16]
[1722428489053,3.00503,3327.8,3326.6,12.16]
[1722428489398,3.0,3328.0,3327.2,5.39387]
[1722428489399,6.00488,3328.0,3327.2,5.39387]
[1722428489597,3.00476,3328.1,3327.2,43.39931]
[1722428489598,3.0049,3327.9,3327.2,43.39931]
[1722428489903,3.0049,3327.9,3327.3,3.00543]
[1722428490276,3.0,3327.8,3327.3,3.00543]
[1722428490708,3.00509,3327.7,3327.2,37.3884]
[1722428491518,3.0053,3327.5,3327.2,35.0]
[1722428491720,3.00543,3327.3,3327.2,35.0]
[1722428493146,6.01086,3327.3,3327.2,35.0]
[1722428493588,3.00581,3326.9,3326.3,5.35973]
[1722428493790,3.00581,3326.9,3326.3,6.19635]
[1722428494034,3.00581,3326.9,3326.6,35.0]
[1722428494535,3.00594,3326.8,3326.6,35.0]
[1722428494846,3.00598,3326.7,3326.6,35.0]
[1722428495433,6.01168,3326.9,3326.6,35.0]
[1722428495632,3.00581,3326.9,3326.6,35.0]
[1722428496138,3.00598,3326.7,3326.6,35.0]
[1722428496838,6.01196,3326.7,3326.6,35.0]
[1722428497043,3.00646,3326.2,3325.6,3.00697]
[1722428497222,2.657,3326.5,3324.9,7.5816]
[1722428497409,3.0068,3325.8,3325.2,3.00727]
[1722428497625,3.00664,3326.0,3325.3,3.00724]
[1722428497824,3.00664,3326.0,3325.4,3.66870791]
[1722428498254,3.0067,3325.9,3325.4,0.601451]
[1722428498461,3.0067,3325.9,3325.5,35.0]
[1722428498608,3.00664,3326.0,3325.5,35.0]
[1722428499439,3.00672,3325.9,3325.5,35.0]
[1722428499766,3.00679,3325.8,3325.5,35.0]
[1722428500360,3.00664,3326.0,3325.5,35.0]
[1722428500511,3.00648,3326.2,3325.5,35.0]
[1722428500711,3.00668,3326.0,3325.5,35.0]
[1722428500971,3.00679,3325.8,3325.5,35.0]
[1722428501143,6.01366,3325.8,3325.5,35.0]
[1722428501314,3.00679,3325.8,3325.5,35.0]
[1722428501508,3.00683,3325.8,3325.5,35.0]
[1722428502414,3.0069,3325.7,3325.5,35.0]
[1722428503048,3.00697,3325.6,3325.5,35.0]
[1722428503241,0.300697,3325.6,3324.5,2.3802]
[1722428503568,3.00779,3324.7,3323.9,5.38863]
[1722428503717,3.00793,3324.6,3324.0,35.0]
[1722428504121,3.00797,3324.5,3324.0,35.0]
[1722428504521,3.00789,3324.6,3324.0,35.0]
[1722428504721,3.00789,3324.6,3324.0,38.04901288]
[1722428505122,3.00789,3324.6,3324.0,41.05742288]
[1722428505462,8.47308,3325.2,3324.3,3.00809]
[1722428505463,5.4657,3325.2,3324.3,3.00809]
[1722428505670,3.0,3325.1,3324.5,3.00789]
[1722428505832,6.00744,3325.1,3324.5,3.00789]
[1722428506031,10.41729,3325.3,3324.5,3.00789]
[1722428506032,3.0,3325.2,3324.6,38.00786]
[1722428506450,6.00734,3325.2,3324.6,38.00786]
[1722428506650,2.584597,3325.6,3324.7,0.12476189]
[1722428506846,3.0,3325.5,3325.0,3.00751]
[1722428507053,0.300697,3325.6,3325.0,3.00751]
[1722428507217,3.00709,3325.5,3325.1,35.06460839]
[1722428507628,3.00724,3325.3,3325.1,35.06460839]
[1722428509362,3.0,3325.6,3325.1,35.06460839]
[1722428509363,6.01466,3325.2,3325.1,35.06460839]
[1722428509560,3.00733,3325.2,3325.1,35.06460839]
[1722428509728,6.01466,3325.2,3325.1,0.06460839]
[1722428509927,3.00755,3325.0,3324.4,3.00805]
[1722428510174,3.00755,3325.0,3324.5,35.0]
[1722428510953,3.00762,3324.9,3324.5,35.0]
[1722428511187,2.3422,3325.2,3324.5,35.0]
[1722428511383,3.00755,3325.0,3324.5,35.0]
[1722428511559,3.00767,3324.9,3324.5,35.0]
[1722428511761,6.00707,3325.5,3324.5,35.0]
[1722428511762,3.00718,3325.4,3324.5,38.00795]
[1722428512004,3.00732,3325.3,3324.6,3.00782]
[1722428512176,3.0,3325.2,3324.7,0.06015341]
[1722428512463,3.0,3325.5,3324.7,0.06015341]
[1722428512464,3.00721,3325.4,3324.8,0.30680234]
[1722428512704,6.00725,3325.3,3324.7,0.06015341]
[1722428513271,3.0,3325.3,3324.7,0.06015341]
[1722428513455,3.0,3325.3,3324.8,3.00768]
[1722428513657,3.0,3325.3,3324.6,3.0078]
[1722428513856,6.00725,3325.3,3324.6,3.0078]
[1722428514169,3.00739,3325.2,3324.9,35.0]
[1722428514375,3.00743,3325.1,3324.9,35.0]
[1722428515263,6.00732,3325.3,3324.9,35.0]
[1722428515901,3.00744,3325.1,3324.9,35.0]
[1722428516290,3.00735,3325.2,3324.9,35.0]
[1722428516811,3.00748,3325.1,3324.9,35.0]
[1722428517301,6.00733,3325.3,3324.9,35.0]
[1722428517805,3.0,3325.3,3324.9,35.0]
[1722428518801,3.00735,3325.2,3324.9,35.0]
[1722428518977,3.0,3325.3,3324.9,35.0]
[1722428519665,3.00733,3325.2,3324.9,35.0]
[1722428520094,3.0,3325.3,3324.9,35.0]
[1722428520366,3.00693,3325.7,3325.1,3.00734]
[1722428520565,7.41,3326.0,3325.3,3.00717]
[1722428520874,3.00666,3326.0,3325.3,3.00717]
[1722428521217,3.00684,3325.8,3325.2,3.06740456]
[1722428521439,3.00684,3325.8,3325.2,3.42399238]
[1722428521710,3.00657,3326.1,3325.3,0.06524352]
[1722428521872,6.01347,3325.9,3325.3,3.07245352]
[1722428522075,3.0067,3325.9,3325.3,0.06524352]
[1722428522689,3.00657,3326.1,3325.4,3.0071]
[1722428522863,3.0,3326.0,3325.4,3.0071]
[1722428523090,3.00647,3326.2,3325.5,0.06524352]
[1722428523292,3.00634,3326.3,3325.7,3.00685]
[1722428523564,7.41,3326.4,3325.9,3.00667]
[1722428523807,7.41,3326.4,3325.9,3.00664]
[1722428523974,7.41,3326.4,3326.0,0.06502925]
[1722428524304,3.00616,3326.5,3326.0,0.06502925]
[1722428524621,3.00616,3326.5,3326.1,35.0]
[1722428524622,3.00643,3326.2,3326.1,35.0]
[1722428524761,6.01286,3326.2,3326.1,35.06490684]
[1722428525177,3.00643,3326.2,3326.1,35.06490684]
[1722428525784,8.48386,3326.2,3326.1,35.06490684]
[1722428526095,8.48386,3326.2,3326.1,0.06490684]
[1722428526278,8.48386,3326.2,3325.4,3.0071]
[1722428526279,3.00653,3326.1,3325.4,3.0071]
[1722428526464,6.00653,3326.1,3325.5,35.0]
[1722428526790,3.00663,3326.0,3325.5,35.0]
[1722428527666,3.00675,3325.9,3325.5,35.0]
[1722428527861,3.0068,3325.8,3325.5,35.0]
[1722428528263,3.00663,3326.0,3325.5,35.0]
[1722428528687,3.0067,3325.9,3325.5,35.0]
[1722428529073,3.0068,3325.8,3325.5,35.0]
[1722428529466,3.00697,3325.6,3325.5,35.0]
[1722428529719,3.00716,3325.4,3324.8,3.00768]
[1722428530066,3.00716,3325.4,3324.9,35.0]
[1722428531205,6.01439,3325.4,3324.9,35.0]
[1722428531408,3.00712,3325.5,3324.9,35.0]
[1722428531622,3.00733,3325.2,3324.9,35.0]
[1722428531831,0.275138,3325.7,3324.9,35.0]
[1722428531832,3.00751,3325.0,3324.9,35.0]
[1722428532093,6.01502,3325.0,3324.9,35.0]
[1722428533027,6.616522,3325.0,3324.9,35.0]
[1722428533311,3.601502,3325.0,3323.6,2.4182]
[1722428533757,3.00838,3324.1,3323.7,35.0]
[1722428534167,3.00838,3324.1,3323.7,38.04901288]
[1722428534367,3.00843,3324.0,3323.7,38.04901288]
[1722428534604,3.00825,3324.2,3323.7,38.04901288]
[1722428534830,5.657,3324.9,3323.9,3.00851]
[1722428534831,3.00797,3324.5,3323.9,3.00851]
[1722428535321,3.0,3324.9,3323.6,5.42694]
[1722428535322,3.00794,3324.6,3323.6,5.42694]
[1722428535523,3.00811,3324.4,3324.0,35.0]
[1722428536289,3.00817,3324.3,3324.0,35.0]
[1722428536485,3.00805,3324.5,3324.0,35.0]
[1722428536683,3.00808,3324.4,3324.1,0.064727]
[1722428538001,3.00792,3324.6,3324.1,0.064727]
[1722428538386,3.00792,3324.6,3324.1,2.9276337]
[1722428538621,9.902,3325.1,3324.2,3.00816]
[1722428538819,7.41,3325.1,3324.5,3.00789]
[1722428539028,7.41,3325.1,3324.6,35.06015707]
[1722428539205,7.41,3325.1,3324.7,3.00771]
[1722428539527,7.41,3325.1,3324.7,6.01542]
[1722428539701,7.41,3325.1,3324.8,0.0652474]
[1722428540088,3.00691,3325.7,3324.9,38.00753]
[1722428540249,3.00703,3325.6,3325.0,3.0075]
[1722428540447,3.00688,3325.8,3325.1,6.01477]
[1722428540591,3.00674,3325.9,3325.1,3.0725974]
[1722428540592,3.0069,3325.7,3325.1,3.0725974]
[1722428540951,3.0069,3325.7,3325.2,35.0]
[1722428541330,3.00674,3325.9,3325.3,0.0652474]
[1722428541646,7.41,3326.0,3325.3,3.0724774]
[1722428541790,10.41662,3326.0,3325.3,3.0724774]
[1722428541995,3.0,3325.9,3325.4,35.0]
[1722428542432,3.00679,3325.8,3325.4,35.0]
[1722428542616,3.00679,3325.8,3325.5,0.0652474]
[1722428542816,3.0,3325.9,3325.5,0.0652474]
[1722428543035,6.00671,3325.9,3325.5,0.0652474]
[1722428543907,3.00695,3325.7,3325.5,0.0652474]
[1722428544112,3.00692,3325.7,3325.5,0.0652474]
[1722428544498,6.00674,3325.9,3325.5,0.0652474]
[1722428544844,3.00696,3325.7,3325.5,0.0652474]
[1722428545008,6.00678,3325.9,3325.5,0.0652474]
[1722428545945,6.00678,3325.9,3325.2,3.00725]
[1722428546106,6.00678,3325.9,3325.6,0.0652474]
[1722428546107,3.00681,3325.8,3325.6,0.0652474]
[1722428546309,3.00681,3325.8,3325.7,35.0]
[1722428546550,3.00681,3325.8,3325.7,35.0652474]
[1722428546943,6.00681,3325.8,3325.7,35.0652474]
[1722428547242,9.01362,3325.8,3325.7,35.0652474]
[1722428547740,6.00681,3325.8,3325.7,35.0652474]
[1722428550876,3.0,3325.8,3325.7,35.0652474]
[1722428551172,3.00665,3326.0,3325.7,35.0652474]
[1722428551173,3.0,3325.9,3325.7,35.0652474]
[1722428551660,3.00679,3325.8,3325.7,35.0652474]
[1722428551880,6.00679,3325.8,3325.7,35.0652474]
[1722428554188,6.00679,3325.8,3325.7,35.0]
[1722428554576,6.00679,3325.8,3325.7,35.06481114]
[1722428555288,3.0,3325.8,3325.7,35.06481114]
[1722428555493,3.0,3326.0,3325.7,40.87569984]
[1722428555700,3.0,3326.3,3325.7,38.07164114]
[1722428556065,3.0,3326.3,3325.7,35.06481114]
[1722428556790,6.01295,3326.2,3325.7,35.06481114]
[1722428556951,6.00652,3326.1,3325.7,35.06481114]
[1722428557446,3.0,3326.1,3325.7,35.06481114]
[1722428557852,6.00654,3326.1,3325.7,35.06481114]
[1722428558544,6.00654,3326.1,3325.7,0.06481114]
[1722428558794,3.0,3326.1,3325.5,3.06712472]
[1722428558960,10.4163,3326.4,3325.8,35.06482644]
[1722428558961,3.00643,3326.2,3325.8,35.06482644]
[1722428559176,3.0,3326.1,3325.8,35.0]
[1722428559373,3.0,3326.1,3325.9,0.06482644]
[1722428559572,6.00658,3326.1,3325.9,0.06482644]
[1722428560920,3.00661,3326.0,3325.9,0.06482644]
[1722428561200,9.01322,3326.0,3325.9,0.06482644]
[1722428561373,9.914539,3326.0,3325.9,0.06482644]
[1722428561563,9.914539,3326.0,3325.0,3.00748]
[1722428561564,3.901319,3326.0,3324.9,3.00758]
[1722428561759,3.901319,3326.0,3324.7,2.4836]
[1722428561760,3.00721,3325.4,3325.0,35.0]
[1722428562191,3.00719,3325.4,3325.0,35.0]
[1722428563302,3.00684,3325.8,3325.0,38.00743]
[1722428563510,3.0,3325.7,3325.2,3.00733]
[1722428563862,3.0,3325.8,3325.1,3.04901288]
[1722428564057,6.0068,3325.8,3325.3,3.00724]
[1722428564358,6.0068,3325.8,3325.1,6.05636288]
[1722428564589,3.0,3325.8,3325.2,3.00733]
[1722428564775,3.0,3325.8,3325.2,3.36391782]
[1722428565079,6.00681,3325.8,3325.2,3.36391782]
[1722428565567,6.00681,3325.8,3325.2,3.36387782]
[1722428566214,3.0,3325.8,3325.3,3.00724]
[1722428566378,6.00671,3325.9,3325.3,3.00724]
[1722428566575,6.00671,3325.9,3325.2,0.35658782]
[1722428566576,3.00679,3325.8,3325.4,0.06468111]
[1722428566816,3.00679,3325.8,3325.2,3.36389782]
[1722428566817,3.0,3325.7,3325.2,3.36389782]
[1722428567015,3.0,3325.7,3325.5,0.06468111]
[1722428567218,3.0,3325.7,3325.2,3.36385782]
[1722428567219,3.0,3325.9,3325.3,3.00724]
[1722428567500,3.0,3325.9,3325.4,5.36714]
[1722428567727,3.0,3325.9,3325.4,5.43182111]
[1722428567944,3.0,3325.9,3325.4,5.49195812]
[1722428568155,3.0,3325.9,3325.4,5.43182111]
[1722428568446,3.0,3325.9,3325.4,5.49195816]
[1722428568654,3.0,3325.9,3325.4,6.44125274]
[1722428568950,2.0,3325.9,3325.4,6.44125274]
[1722428569156,3.00663,3326.0,3325.4,6.44125274]
[1722428569754,3.00663,3326.0,3325.4,6.38111569]
[1722428570446,3.00672,3325.9,3325.4,6.38111569]
[1722428570812,3.00672,3325.9,3325.5,35.0]
[1722428571025,3.00672,3325.9,3325.5,37.0997183]
[1722428571231,3.00672,3325.9,3325.6,0.06478438]
[1722428571928,3.00672,3325.9,3325.7,35.0]
[1722428572140,3.00672,3325.9,3325.7,35.06478438]
[1722428572458,3.00647,3326.2,3325.7,35.06478438]
[1722428572459,3.00655,3326.1,3325.7,35.06478438]
[1722428572748,3.0,3326.0,3325.7,0.06478438]
[1722428573054,3.0,3326.0,3325.8,35.0]
[1722428573205,6.00663,3326.0,3325.8,35.06478438]
[1722428573710,6.00663,3326.0,3325.8,0.06478438]
[1722428573923,3.00675,3325.9,3325.4,3.30929458]
[1722428574248,3.00675,3325.9,3325.5,35.0]
[1722428574608,3.00675,3325.9,3325.6,0.06469256]
[1722428575751,3.0,3326.0,3325.7,0.06469256]
[1722428575958,3.0,3326.0,3325.4,38.00714]
[1722428576164,3.0,3326.1,3325.8,0.06469256]
[1722428576313,3.0,3326.1,3325.5,3.04901288]
[1722428576508,3.0,3326.1,3325.9,0.06469256]
[1722428576723,3.0,3326.1,3325.4,38.00714]
[1722428576924,6.00652,3326.1,3326.0,0.06469256]
[1722428577215,3.00664,3326.0,3325.4,38.00714]
[1722428577319,3.00664,3326.0,3325.5,3.04901288]
[1722428577973,6.01332,3326.0,3325.5,3.04901288]
[1722428578119,3.00672,3325.9,3325.5,3.04901288]
[1722428578727,3.00672,3325.9,3325.6,0.2]
[1722428580472,3.00672,3325.9,3325.6,35.2]
[1722428581037,3.0068,3325.8,3325.6,35.2]
[1722428581795,6.01364,3325.8,3325.7,0.06469256]
[1722428581970,3.00688,3325.7,3325.6,0.2]
[1722428582997,3.00688,3325.7,3325.6,0.4]
[1722428584775,3.0068,3325.8,3325.6,0.4]
[1722428585475,5.20506744,3326.1,3325.6,0.4]
[1722428585476,8.21160744,3326.1,3325.6,0.4]
[1722428585701,8.21160744,3326.1,3325.7,35.0]
[1722428585910,6.00654,3326.1,3325.7,35.0]
[1722428586289,3.00662,3326.0,3325.7,35.0]
[1722428586678,3.00671,3325.9,3325.7,35.0]
[1722428588560,3.00671,3325.9,3325.6,0.94071]
[1722428588761,3.0068,3325.8,3325.6,0.6]
[1722428588962,3.0068,3325.8,3325.7,0.06469257]
[1722428589275,3.0068,3325.8,3325.6,35.6]
[1722428589480,3.0068,3325.8,3325.7,0.06469257]
[1722428589821,3.0068,3325.8,3325.6,35.6]
[1722428590120,3.0068,3325.8,3325.7,0.06469257]
[1722428590280,3.0067,3325.9,3325.7,0.06469257]
[1722428590480,3.0067,3325.9,3325.6,35.6]
[1722428590827,3.0067,3325.9,3325.6,0.6]
[1722428591119,3.00679,3325.8,3325.7,0.26469257]
[1722428593389,6.01362,3325.8,3325.7,0.26469257]
[1722428593724,6.8361589,3325.8,3325.7,0.26469257]
[1722428594234,12.05475787,3325.8,3325.7,0.26469257]
[1722428594386,12.8429889,3325.8,3325.7,0.26469257]
[1722428594587,12.8429889,3325.8,3325.7,0.2]
[1722428595092,12.8429889,3325.8,3325.7,0.4]
[1722428596430,9.01362,3325.8,3325.7,0.4]
[1722428597305,11.22510921,3325.8,3325.7,0.4]
[1722428597637,14.23196117,3325.8,3325.7,0.4]
[1722428597855,12.02045,3325.8,3325.7,0.4]
[1722428598459,14.23180149,3325.8,3325.7,0.4]
[1722428598815,12.02045,3325.8,3325.7,0.4]
[1722428599134,15.67888562,3325.8,3325.7,0.4]
[1722428599562,13.467475,3325.8,3325.7,0.4]
[1722428600755,10.460645,3325.8,3325.7,0.4]
[1722428601533,12.67156733,3325.8,3325.7,0.46469637]
[1722428601713,12.67156307,3325.8,3325.7,0.46469637]
[1722428602365,9.01362,3325.8,3325.7,0.46469637]
[1722428602914,11.22457497,3325.8,3325.7,0.46469637]
[1722428603534,9.01362,3325.8,3325.7,0.46469637]
[1722428603924,6.01362,3325.8,3325.7,0.46469637]
[1722428604977,8.22457497,3325.8,3325.7,0.46469637]
[1722428605183,6.01362,3325.8,3325.7,0.46469637]
[1722428606187,8.22485646,3325.8,3325.7,0.46469637]
[1722428606549,6.01362,3325.8,3325.7,0.46469637]
[1722428607027,8.22491503,3325.8,3325.7,0.46469637]
[1722428607224,7.12262,3325.8,3325.7,0.46469637]
[1722428607994,9.33394007,3325.8,3325.7,0.46469637]
[1722428608349,7.12262,3325.8,3325.7,0.46469637]
[1722428608549,6.32711007,3325.8,3325.7,0.46469637]
[1722428609079,4.11579,3325.8,3325.7,0.46469637]
[1722428611044,2.21139077,3326.0,3325.7,0.46469637]
[1722428611246,2.21139077,3326.1,3325.7,0.46469637]
[1722428611460,2.21139077,3326.3,3325.8,0.40716164]
[1722428611660,5.21139077,3326.3,3325.8,0.40716164]
[1722428611891,6.00637,3326.3,3325.9,0.06478054]
[1722428612073,6.00637,3326.3,3325.7,0.4]
[1722428612074,3.0,3326.3,3325.7,0.4]
[1722428612378,3.0,3326.3,3326.0,0.06478054]
[1722428612379,5.21139077,3326.3,3326.0,0.06478054]
[1722428612531,3.0,3326.3,3325.7,35.4]
[1722428612730,2.21098824,3326.3,3325.7,38.44901288]
[1722428613107,3.0,3326.3,3325.8,0.06478054]
[1722428613453,6.00634,3326.3,3325.8,0.06478054]
[1722428614837,3.00645,3326.2,3325.8,0.06478054]
[1722428616387,3.0,3326.3,3325.8,0.06478054]
[1722428616545,3.0,3326.3,3325.8,3.11379342]
[1722428616996,3.0,3326.3,3325.8,6.12057342]
[1722428617311,3.0,3326.4,3325.8,6.12052342]
[1722428617441,2.21044754,3326.5,3325.9,2.3508]
[1722428617442,5.21044754,3326.5,3325.9,2.3508]